[Event "Titled Tuesday Blitz November 29 Early 2022"]
[White "Ciuffoletti, Paolo"]
[Black "Adel, Sara"]
[WhiteFideId "807630"]
[BlackFideId "10616764"]
[WhiteElo "2143"]
[BlackElo "1994"]
[Result "0-1"]
[Round "11"]
[TimeControl "180+1"]
[Date "2022.11.30"]
[WhiteClock "0:00:03"]
[BlackClock "0:00:19"]

1. e4 {[%clk 0:03:00]}  c6 {[%clk 0:02:56]} 2. d4 {[%clk 0:03:00]}  d5 {[%clk 0:02:57]} 3. exd5 {[%clk 0:03:00]}  cxd5 {[%clk 0:02:56]} 4. c4 {[%clk 0:03:00]}  e6 {[%clk 0:02:56]} 5. Nc3 {[%clk 0:03:00]}  Nf6 {[%clk 0:02:56]} 6. Nf3 {[%clk 0:03:00]}  dxc4 {[%clk 0:02:56]} 7. Bxc4 {[%clk 0:03:00]}  Nc6 {[%clk 0:02:57]} 8. O-O {[%clk 0:02:56]}  Be7 {[%clk 0:02:57]} 9. Bg5 {[%clk 0:02:51]}  a6 {[%clk 0:02:57]} 10. a3 {[%clk 0:02:49]}  b5 {[%clk 0:02:57]} 11. Ba2 {[%clk 0:02:45]}  Bb7 {[%clk 0:02:57]} 12. Rc1 {[%clk 0:02:44]}  Na5 {[%clk 0:02:57]} 13. Ne5 {[%clk 0:02:36]}  Rc8 {[%clk 0:02:41]} 14. Qe2 {[%clk 0:02:30]}  O-O {[%clk 0:02:03]} 15. Rfd1 {[%clk 0:02:27]}  Nd5 {[%clk 0:01:43]} 16. Bxe7 {[%clk 0:02:06]}  Nxc3 {[%clk 0:01:34]} 17. Rxc3 {[%clk 0:01:59]}  Qxe7 {[%clk 0:01:33]} 18. Rg3 {[%clk 0:01:51]}  Rfd8 {[%clk 0:01:23]} 19. Qg4 {[%clk 0:01:44]}  Qf6 {[%clk 0:01:20]} 20. h4 {[%clk 0:01:24]}  Rc2 {[%clk 0:01:18]} 21. Rf3 {[%clk 0:01:12]}  Bxf3 {[%clk 0:01:03]} 22. Nxf3 {[%clk 0:01:08]}  Rxb2 {[%clk 0:01:02]} 23. Bb1 {[%clk 0:01:08]}  Nb3 {[%clk 0:01:01]} 24. Qe4 {[%clk 0:00:43]}  g6 {[%clk 0:00:42]} 25. h5 {[%clk 0:00:42]}  Rc8 {[%clk 0:00:33]} 26. Ne5 {[%clk 0:00:34]}  Qxf2+ {[%clk 0:00:31]} 27. Kh1 {[%clk 0:00:33]}  Nd2 {[%clk 0:00:28]} 28. Qb7 {[%clk 0:00:30]}  Rf8 {[%clk 0:00:19]} 29. Nd7 {[%clk 0:00:20]}  Qh4+ {[%clk 0:00:18]} 30. Kg1 {[%clk 0:00:20]}  Qxd4+ {[%clk 0:00:18]} 31. Kh1 {[%clk 0:00:18]}  Rd8 {[%clk 0:00:19]} 32. hxg6 {[%clk 0:00:10]}  hxg6 {[%clk 0:00:18]} 33. Nb6 {[%clk 0:00:05]}  Qh4+ {[%clk 0:00:19]} 34. Kg1 {[%clk 0:00:05]}  Ne4 {[%clk 0:00:19]} 35. Bxe4 {[%clk 0:00:03]}  Rxd1# {[%clk 0:00:19]} 0-1


[Site "https://www.chess.com"]

[Event "Titled Tuesday Blitz November 29 Early 2022"]
[White "Costachi, Mihnea"]
[Black "Sarana, Alexey"]
[WhiteFideId "1217518"]
[BlackFideId "24133795"]
[WhiteElo "2424"]
[BlackElo "2708"]
[Result "0-1"]
[Round "11"]
[TimeControl "180+1"]
[Date "2022.11.29"]
[WhiteClock "0:00:13"]
[BlackClock "0:00:52"]

1. d4 {[%clk 0:03:00]}  Nf6 {[%clk 0:02:56]} 2. c4 {[%clk 0:03:01]}  e6 {[%clk 0:02:56]} 3. Nf3 {[%clk 0:03:01]}  d5 {[%clk 0:02:57]} 4. Nc3 {[%clk 0:03:01]}  Nbd7 {[%clk 0:02:58]} 5. cxd5 {[%clk 0:03:01]}  exd5 {[%clk 0:02:59]} 6. Bg5 {[%clk 0:03:01]}  Bb4 {[%clk 0:02:59]} 7. e3 {[%clk 0:03:01]}  h6 {[%clk 0:02:57]} 8. Bh4 {[%clk 0:03:01]}  g5 {[%clk 0:02:57]} 9. Bg3 {[%clk 0:03:01]}  Ne4 {[%clk 0:02:57]} 10. Qb3 {[%clk 0:02:52]}  c5 {[%clk 0:02:54]} 11. Rc1 {[%clk 0:02:41]}  Qa5 {[%clk 0:02:44]} 12. a3 {[%clk 0:01:46]}  Bxc3+ {[%clk 0:02:39]} 13. bxc3 {[%clk 0:01:46]}  h5 {[%clk 0:02:24]} 14. Be5 {[%clk 0:01:36]}  c4 {[%clk 0:02:11]} 15. Qb4 {[%clk 0:01:01]}  Qxb4 {[%clk 0:02:11]} 16. axb4 {[%clk 0:01:02]}  Nxe5 {[%clk 0:01:41]} 17. dxe5 {[%clk 0:01:00]}  a5 {[%clk 0:01:41]} 18. bxa5 {[%clk 0:00:57]}  Rxa5 {[%clk 0:01:42]} 19. Nd2 {[%clk 0:00:57]}  Nc5 {[%clk 0:01:40]} 20. e4 {[%clk 0:00:51]}  Be6 {[%clk 0:01:39]} 21. exd5 {[%clk 0:00:47]}  Bxd5 {[%clk 0:01:40]} 22. Nxc4 {[%clk 0:00:45]}  Ra2 {[%clk 0:01:39]} 23. Ne3 {[%clk 0:00:38]}  Be6 {[%clk 0:01:39]} 24. Bb5+ {[%clk 0:00:37]}  Ke7 {[%clk 0:01:39]} 25. O-O {[%clk 0:00:38]}  Rd8 {[%clk 0:01:39]} 26. Rfd1 {[%clk 0:00:37]}  Ne4 {[%clk 0:01:36]} 27. Rxd8 {[%clk 0:00:36]}  Kxd8 {[%clk 0:01:37]} 28. f3 {[%clk 0:00:32]}  Nc5 {[%clk 0:01:36]} 29. Bc4 {[%clk 0:00:32]}  Bxc4 {[%clk 0:01:25]} 30. Nxc4 {[%clk 0:00:33]}  Ke7 {[%clk 0:01:26]} 31. Rb1 {[%clk 0:00:30]}  Rc2 {[%clk 0:01:26]} 32. Nd6 {[%clk 0:00:30]}  Ke6 {[%clk 0:01:21]} 33. Nxb7 {[%clk 0:00:27]}  Nd3 {[%clk 0:01:21]} 34. Rd1 {[%clk 0:00:20]}  Nf4 {[%clk 0:01:18]} 35. Nc5+ {[%clk 0:00:21]}  Kf5 {[%clk 0:01:19]} 36. Nd3 {[%clk 0:00:12]}  Nxg2 {[%clk 0:00:59]} 37. Ne1 {[%clk 0:00:09]}  Nxe1 {[%clk 0:01:00]} 38. Rxe1 {[%clk 0:00:10]}  Kf4 {[%clk 0:01:00]} 39. e6 {[%clk 0:00:09]}  fxe6 {[%clk 0:01:01]} 40. Rxe6 {[%clk 0:00:09]}  Kxf3 {[%clk 0:01:02]} 41. Rf6+ {[%clk 0:00:09]}  Kg4 {[%clk 0:01:02]} 42. Rd6 {[%clk 0:00:08]}  Rxc3 {[%clk 0:01:01]} 43. Kg2 {[%clk 0:00:06]}  Rc2+ {[%clk 0:01:02]} 44. Kg1 {[%clk 0:00:07]}  Re2 {[%clk 0:01:01]} 45. Rd4+ {[%clk 0:00:06]}  Kf3 {[%clk 0:01:01]} 46. Rd3+ {[%clk 0:00:04]}  Re3 {[%clk 0:01:01]} 47. Rd1 {[%clk 0:00:05]}  Ke2 {[%clk 0:00:58]} 48. Rf1 {[%clk 0:00:05]}  Re4 {[%clk 0:00:53]} 49. Rf5 {[%clk 0:00:02]}  Rg4+ {[%clk 0:00:53]} 50. Kh1 {[%clk 0:00:02]}  Ke3 {[%clk 0:00:47]} 51. h3 {[%clk 0:00:03]}  Rg3 {[%clk 0:00:44]} 52. Kh2 {[%clk 0:00:03]}  Ke4 {[%clk 0:00:42]} 53. Ra5 {[%clk 0:00:03]}  h4 {[%clk 0:00:42]} 54. Ra4+ {[%clk 0:00:03]}  Kf5 {[%clk 0:00:43]} 55. Ra5+ {[%clk 0:00:04]}  Kg6 {[%clk 0:00:43]} 56. Ra6+ {[%clk 0:00:03]}  Kh5 {[%clk 0:00:44]} 57. Ra8 {[%clk 0:00:04]}  Rd3 {[%clk 0:00:44]} 58. Ra2 {[%clk 0:00:05]}  Kg6 {[%clk 0:00:44]} 59. Rg2 {[%clk 0:00:05]}  Kf5 {[%clk 0:00:45]} 60. Rf2+ {[%clk 0:00:06]}  Ke4 {[%clk 0:00:45]} 61. Ra2 {[%clk 0:00:07]}  Kf3 {[%clk 0:00:39]} 62. Rg2 {[%clk 0:00:06]}  Kf4 {[%clk 0:00:39]} 63. Ra2 {[%clk 0:00:06]}  Ke3 {[%clk 0:00:39]} 64. Rg2 {[%clk 0:00:06]}  Rd2 {[%clk 0:00:39]} 65. Rxd2 {[%clk 0:00:03]}  Kxd2 {[%clk 0:00:40]} 66. Kg1 {[%clk 0:00:03]}  Ke3 {[%clk 0:00:40]} 67. Kg2 {[%clk 0:00:03]}  Ke2 {[%clk 0:00:41]} 68. Kg1 {[%clk 0:00:03]}  Kf3 {[%clk 0:00:42]} 69. Kh2 {[%clk 0:00:04]}  Kf2 {[%clk 0:00:42]} 70. Kh1 {[%clk 0:00:04]}  Kg3 {[%clk 0:00:43]} 71. Kg1 {[%clk 0:00:05]}  Kxh3 {[%clk 0:00:44]} 72. Kh1 {[%clk 0:00:05]}  g4 {[%clk 0:00:44]} 73. Kg1 {[%clk 0:00:06]}  Kg3 {[%clk 0:00:43]} 74. Kh1 {[%clk 0:00:07]}  h3 {[%clk 0:00:44]} 75. Kg1 {[%clk 0:00:07]}  Kh4 {[%clk 0:00:45]} 76. Kh1 {[%clk 0:00:08]}  g3 {[%clk 0:00:46]} 77. Kg1 {[%clk 0:00:09]}  Kg4 {[%clk 0:00:47]} 78. Kh1 {[%clk 0:00:09]}  Kf3 {[%clk 0:00:48]} 79. Kg1 {[%clk 0:00:10]}  h2+ {[%clk 0:00:48]} 80. Kh1 {[%clk 0:00:10]}  g2+ {[%clk 0:00:48]} 81. Kxh2 {[%clk 0:00:11]}  Kf2 {[%clk 0:00:49]} 82. Kh3 {[%clk 0:00:11]}  g1=Q {[%clk 0:00:50]} 83. Kh4 {[%clk 0:00:12]}  Qg6 {[%clk 0:00:51]} 84. Kh3 {[%clk 0:00:13]}  Qh5# {[%clk 0:00:52]} 0-1


[Site "https://www.chess.com"]

[Event "Titled Tuesday Blitz November 29 Early 2022"]
[White "Dubov, Daniil"]
[Black "Fedoseev, Vladimir"]
[WhiteFideId "24126055"]
[BlackFideId "24130737"]
[WhiteElo "2791"]
[BlackElo "2726"]
[Result "1-0"]
[Round "11"]
[TimeControl "180+1"]
[Date "2022.11.29"]
[WhiteClock "0:00:40"]
[BlackClock "0:00:26"]

1. e4 {[%clk 0:03:00]}  c5 {[%clk 0:02:58]} 2. Nf3 {[%clk 0:03:00]}  d6 {[%clk 0:02:54]} 3. d4 {[%clk 0:03:00]}  cxd4 {[%clk 0:02:54]} 4. Nxd4 {[%clk 0:03:01]}  Nf6 {[%clk 0:02:51]} 5. Nc3 {[%clk 0:03:01]}  a6 {[%clk 0:02:50]} 6. g3 {[%clk 0:02:59]}  e5 {[%clk 0:02:48]} 7. Nf3 {[%clk 0:02:59]}  Be7 {[%clk 0:02:46]} 8. a4 {[%clk 0:02:59]}  O-O {[%clk 0:02:45]} 9. Bg2 {[%clk 0:03:00]}  Nc6 {[%clk 0:02:43]} 10. O-O {[%clk 0:02:59]}  h6 {[%clk 0:02:42]} 11. Nh4 {[%clk 0:02:57]}  Nd4 {[%clk 0:02:38]} 12. h3 {[%clk 0:02:54]}  Be6 {[%clk 0:02:33]} 13. Be3 {[%clk 0:02:51]}  g5 {[%clk 0:02:32]} 14. Nf5 {[%clk 0:02:23]}  Nxf5 {[%clk 0:02:30]} 15. exf5 {[%clk 0:02:24]}  Bxf5 {[%clk 0:02:31]} 16. Qd2 {[%clk 0:02:17]}  Qd7 {[%clk 0:02:24]} 17. Kh2 {[%clk 0:02:17]}  Rac8 {[%clk 0:02:21]} 18. a5 {[%clk 0:02:03]}  Rc4 {[%clk 0:02:04]} 19. b3 {[%clk 0:01:46]}  Rc7 {[%clk 0:02:03]} 20. Bb6 {[%clk 0:01:45]}  Rcc8 {[%clk 0:01:59]} 21. Rad1 {[%clk 0:01:41]}  Kg7 {[%clk 0:01:54]} 22. Rfe1 {[%clk 0:01:40]}  Rfe8 {[%clk 0:01:52]} 23. Re3 {[%clk 0:01:36]}  Bf8 {[%clk 0:01:42]} 24. Qe2 {[%clk 0:01:31]}  Bg6 {[%clk 0:01:33]} 25. Rd2 {[%clk 0:01:29]}  Re6 {[%clk 0:01:26]} 26. Nd5 {[%clk 0:01:18]}  Nxd5 {[%clk 0:01:24]} 27. Bxd5 {[%clk 0:01:19]}  Rf6 {[%clk 0:01:23]} 28. c4 {[%clk 0:01:17]}  h5 {[%clk 0:01:15]} 29. Bg2 {[%clk 0:01:08]}  Qe7 {[%clk 0:01:09]} 30. c5 {[%clk 0:01:02]}  h4 {[%clk 0:00:54]} 31. cxd6 {[%clk 0:00:48]}  Rxd6 {[%clk 0:00:45]} 32. Rxe5 {[%clk 0:00:45]}  hxg3+ {[%clk 0:00:26]} 33. fxg3 {[%clk 0:00:44]}  Rxd2 {[%clk 0:00:25]} 34. Rxe7 {[%clk 0:00:42]}  Rxe2 {[%clk 0:00:25]} 35. Rxe2 {[%clk 0:00:42]}  Rc3 {[%clk 0:00:26]} 36. Bd4+ {[%clk 0:00:40]} 1-0


[Site "https://www.chess.com"]

[Event "Titled Tuesday Blitz November 29 Early 2022"]
[White "Eynullayev, Atilla"]
[Black "Weetik, Vjacheslav"]
[WhiteFideId "13413570"]
[BlackFideId "4153472"]
[WhiteElo "2181"]
[BlackElo "2469"]
[Result "0-1"]
[Round "11"]
[TimeControl "180+1"]
[Date "2022.11.30"]
[WhiteClock "0:00:11"]
[BlackClock "0:00:08"]

1. e4 {[%clk 0:03:00]}  c5 {[%clk 0:02:58]} 2. Nf3 {[%clk 0:03:01]}  Nc6 {[%clk 0:02:58]} 3. Bb5 {[%clk 0:03:00]}  g6 {[%clk 0:02:56]} 4. Bxc6 {[%clk 0:03:01]}  bxc6 {[%clk 0:02:51]} 5. O-O {[%clk 0:03:00]}  Bg7 {[%clk 0:02:51]} 6. c3 {[%clk 0:03:00]}  Nh6 {[%clk 0:02:50]} 7. d3 {[%clk 0:03:00]}  f5 {[%clk 0:02:43]} 8. Be3 {[%clk 0:02:50]}  d6 {[%clk 0:02:35]} 9. Qc1 {[%clk 0:02:44]}  Ng4 {[%clk 0:02:31]} 10. Bg5 {[%clk 0:02:41]}  O-O {[%clk 0:02:19]} 11. h3 {[%clk 0:02:39]}  fxe4 {[%clk 0:02:15]} 12. dxe4 {[%clk 0:02:38]}  Rxf3 {[%clk 0:02:15]} 13. hxg4 {[%clk 0:02:30]}  Rf7 {[%clk 0:02:14]} 14. f3 {[%clk 0:02:30]}  d5 {[%clk 0:02:01]} 15. Nd2 {[%clk 0:02:28]}  Qb6 {[%clk 0:01:57]} 16. Kh1 {[%clk 0:02:23]}  Ba6 {[%clk 0:01:40]} 17. Re1 {[%clk 0:02:21]}  e5 {[%clk 0:01:40]} 18. exd5 {[%clk 0:01:53]}  cxd5 {[%clk 0:01:40]} 19. c4 {[%clk 0:01:54]}  e4 {[%clk 0:01:30]} 20. Rb1 {[%clk 0:01:36]}  exf3 {[%clk 0:01:27]} 21. Nxf3 {[%clk 0:01:31]}  Bxc4 {[%clk 0:01:24]} 22. Ne5 {[%clk 0:01:28]}  Bxe5 {[%clk 0:01:16]} 23. Rxe5 {[%clk 0:01:24]}  Rf1+ {[%clk 0:01:13]} 24. Qxf1 {[%clk 0:01:25]}  Bxf1 {[%clk 0:01:14]} 25. Rxf1 {[%clk 0:01:25]}  Rf8 {[%clk 0:01:09]} 26. Rfe1 {[%clk 0:01:15]}  h5 {[%clk 0:00:54]} 27. Bh6 {[%clk 0:01:14]}  Rf7 {[%clk 0:00:50]} 28. gxh5 {[%clk 0:01:05]}  gxh5 {[%clk 0:00:49]} 29. Rxh5 {[%clk 0:01:05]}  Rh7 {[%clk 0:00:14]} 30. Re8+ {[%clk 0:00:15]}  Kf7 {[%clk 0:00:14]} 31. Rf8+ {[%clk 0:00:16]}  Kg6 {[%clk 0:00:13]} 32. g4 {[%clk 0:00:09]}  Rxh6 {[%clk 0:00:13]} 33. Rg8+ {[%clk 0:00:09]}  Kf7 {[%clk 0:00:10]} 34. Rg5 {[%clk 0:00:09]}  Rxh5+ {[%clk 0:00:10]} 35. Rxh5 {[%clk 0:00:10]}  Qxb2 {[%clk 0:00:08]} 36. Rh7+ {[%clk 0:00:11]}  Kg6 {[%clk 0:00:09]} 37. Rh5 {[%clk 0:00:11]}  Qxa2 {[%clk 0:00:08]} 0-1


[Site "https://www.chess.com"]

[Event "Titled Tuesday Blitz November 29 Early 2022"]
[White "Fernandez Siles, Luis"]
[Black "D`Arruda, Ricardo D."]
[WhiteFideId "2209420"]
[BlackFideId "100692"]
[WhiteElo "2186"]
[BlackElo "2451"]
[Result "0-1"]
[Round "11"]
[TimeControl "180+1"]
[Date "2022.11.30"]
[WhiteClock "0:00:38"]
[BlackClock "0:01:00"]

1. d4 {[%clk 0:03:00]}  Nf6 {[%clk 0:02:54]} 2. c4 {[%clk 0:02:59]}  e5 {[%clk 0:02:53]} 3. dxe5 {[%clk 0:02:58]}  Ne4 {[%clk 0:02:52]} 4. a3 {[%clk 0:02:57]}  Nc6 {[%clk 0:02:51]} 5. Nd2 {[%clk 0:02:55]}  Nxd2 {[%clk 0:02:50]} 6. Qxd2 {[%clk 0:02:52]}  Nxe5 {[%clk 0:02:51]} 7. e3 {[%clk 0:02:51]}  d6 {[%clk 0:02:51]} 8. Be2 {[%clk 0:02:52]}  Be6 {[%clk 0:02:49]} 9. b3 {[%clk 0:02:51]}  Be7 {[%clk 0:02:47]} 10. Bb2 {[%clk 0:02:51]}  Bf6 {[%clk 0:02:47]} 11. Nf3 {[%clk 0:02:47]}  Nxf3+ {[%clk 0:02:46]} 12. Bxf3 {[%clk 0:02:48]}  Rb8 {[%clk 0:02:40]} 13. O-O {[%clk 0:02:38]}  O-O {[%clk 0:02:38]} 14. Rad1 {[%clk 0:02:30]}  b5 {[%clk 0:02:34]} 15. cxb5 {[%clk 0:02:15]}  Bxb3 {[%clk 0:02:27]} 16. Bxf6 {[%clk 0:01:57]}  Qxf6 {[%clk 0:02:28]} 17. Rc1 {[%clk 0:01:56]}  Rxb5 {[%clk 0:02:12]} 18. Rxc7 {[%clk 0:01:56]}  a5 {[%clk 0:02:05]} 19. Rfc1 {[%clk 0:01:52]}  a4 {[%clk 0:02:00]} 20. h3 {[%clk 0:01:44]}  g6 {[%clk 0:01:59]} 21. R1c6 {[%clk 0:01:35]}  Rd8 {[%clk 0:01:52]} 22. Rc8 {[%clk 0:01:29]}  Rxc8 {[%clk 0:01:50]} 23. Rxc8+ {[%clk 0:01:29]}  Kg7 {[%clk 0:01:51]} 24. Kh2 {[%clk 0:01:19]}  Qe5+ {[%clk 0:01:46]} 25. g3 {[%clk 0:01:18]}  Rc5 {[%clk 0:01:31]} 26. Rd8 {[%clk 0:00:52]}  Rc2 {[%clk 0:01:28]} 27. Qxd6 {[%clk 0:00:52]}  Rxf2+ {[%clk 0:01:20]} 28. Bg2 {[%clk 0:00:52]}  Qxd6 {[%clk 0:01:08]} 29. Rxd6 {[%clk 0:00:53]}  Ra2 {[%clk 0:01:06]} 30. Kg1 {[%clk 0:00:52]}  Rxa3 {[%clk 0:01:05]} 31. Ra6 {[%clk 0:00:46]}  Ra1+ {[%clk 0:01:05]} 32. Kf2 {[%clk 0:00:46]}  Ra2+ {[%clk 0:01:05]} 33. Kg1 {[%clk 0:00:44]}  a3 {[%clk 0:01:04]} 34. Bc6 {[%clk 0:00:39]}  Bc4 {[%clk 0:01:01]} 35. e4 {[%clk 0:00:38]}  Bxa6 {[%clk 0:01:00]} 0-1


[Site "https://www.chess.com"]

[Event "Titled Tuesday Blitz November 29 Early 2022"]
[White "Firouzja, Alireza"]
[Black "Xiong, Jeffery"]
[WhiteFideId "12573981"]
[BlackFideId "2047640"]
[WhiteElo "2903"]
[BlackElo "2725"]
[Result "1/2-1/2"]
[Round "11"]
[TimeControl "180+1"]
[Date "2022.11.29"]
[WhiteClock "0:00:09"]
[BlackClock "0:00:06"]

1. e4 {[%clk 0:02:57]}  e5 {[%clk 0:03:00]} 2. Nf3 {[%clk 0:02:58]}  Nf6 {[%clk 0:03:00]} 3. Nxe5 {[%clk 0:02:58]}  d6 {[%clk 0:03:00]} 4. Nf3 {[%clk 0:02:58]}  Nxe4 {[%clk 0:03:01]} 5. Nc3 {[%clk 0:02:58]}  Nxc3 {[%clk 0:03:00]} 6. dxc3 {[%clk 0:02:59]}  Be7 {[%clk 0:03:00]} 7. Be3 {[%clk 0:02:59]}  O-O {[%clk 0:03:01]} 8. Qd2 {[%clk 0:03:00]}  Nd7 {[%clk 0:03:01]} 9. O-O-O {[%clk 0:03:00]}  c6 {[%clk 0:03:02]} 10. Bd3 {[%clk 0:03:00]}  d5 {[%clk 0:02:53]} 11. h4 {[%clk 0:03:00]}  Nc5 {[%clk 0:02:49]} 12. Ng5 {[%clk 0:03:00]}  h6 {[%clk 0:02:39]} 13. Kb1 {[%clk 0:03:00]}  Re8 {[%clk 0:02:31]} 14. Bh7+ {[%clk 0:02:17]}  Kf8 {[%clk 0:02:31]} 15. f3 {[%clk 0:01:19]}  hxg5 {[%clk 0:01:55]} 16. hxg5 {[%clk 0:01:19]}  Bd6 {[%clk 0:01:56]} 17. c4 {[%clk 0:01:19]}  Be6 {[%clk 0:01:56]} 18. cxd5 {[%clk 0:01:07]}  cxd5 {[%clk 0:01:56]} 19. c4 {[%clk 0:00:53]}  g6 {[%clk 0:01:43]} 20. g4 {[%clk 0:00:50]}  dxc4 {[%clk 0:01:03]} 21. Qc3 {[%clk 0:00:32]}  Nd3 {[%clk 0:00:53]} 22. Bd4 {[%clk 0:00:14]}  Qxg5 {[%clk 0:00:37]} 23. Bf6 {[%clk 0:00:14]}  Qf4 {[%clk 0:00:37]} 24. Bg8 {[%clk 0:00:10]}  Be5 {[%clk 0:00:31]} 25. Qa3+ {[%clk 0:00:09]}  Bd6 {[%clk 0:00:31]} 26. Qc3 {[%clk 0:00:10]}  Be5 {[%clk 0:00:06]} 27. Qa3+ {[%clk 0:00:09]}  Bd6 {[%clk 0:00:06]} 28. Qc3 {[%clk 0:00:09]} 1/2-1/2


[Site "https://www.chess.com"]

[Event "Titled Tuesday Blitz November 29 Early 2022"]
[White "Floresvillar Gonzalez, Luis Migu"]
[Black "Aqib Javaid Butt"]
[WhiteFideId "5100542"]
[BlackFideId "7801262"]
[WhiteElo "2040"]
[BlackElo "1659"]
[Result "1-0"]
[Round "11"]
[TimeControl "180+1"]
[Date "2022.11.30"]
[WhiteClock "0:00:23"]
[BlackClock "0:00:58"]

1. d4 {[%clk 0:03:00]}  d5 {[%clk 0:02:59]} 2. c3 {[%clk 0:03:00]}  c6 {[%clk 0:02:58]} 3. Bf4 {[%clk 0:02:58]}  Nf6 {[%clk 0:02:59]} 4. Nd2 {[%clk 0:02:58]}  Bf5 {[%clk 0:02:59]} 5. Qb3 {[%clk 0:02:56]}  Qb6 {[%clk 0:02:58]} 6. Qxb6 {[%clk 0:02:53]}  axb6 {[%clk 0:02:59]} 7. Bxb8 {[%clk 0:02:52]}  Rxb8 {[%clk 0:02:57]} 8. a3 {[%clk 0:02:52]}  e6 {[%clk 0:02:53]} 9. e3 {[%clk 0:02:51]}  Bd6 {[%clk 0:02:52]} 10. Be2 {[%clk 0:02:50]}  O-O {[%clk 0:02:49]} 11. f4 {[%clk 0:02:49]}  Ng4 {[%clk 0:02:37]} 12. Nf1 {[%clk 0:02:41]}  Nf6 {[%clk 0:02:34]} 13. h3 {[%clk 0:02:40]}  h5 {[%clk 0:02:30]} 14. Nd2 {[%clk 0:02:39]}  Ne4 {[%clk 0:02:20]} 15. Nxe4 {[%clk 0:02:36]}  Bxe4 {[%clk 0:02:21]} 16. Kf2 {[%clk 0:02:26]}  g6 {[%clk 0:02:20]} 17. Bf3 {[%clk 0:02:22]}  Bxf3 {[%clk 0:02:17]} 18. Nxf3 {[%clk 0:02:21]}  Kg7 {[%clk 0:02:11]} 19. g4 {[%clk 0:02:21]}  hxg4 {[%clk 0:02:08]} 20. hxg4 {[%clk 0:02:20]}  Rh8 {[%clk 0:02:09]} 21. g5 {[%clk 0:02:20]}  c5 {[%clk 0:01:59]} 22. Ne5 {[%clk 0:02:13]}  Bxe5 {[%clk 0:01:59]} 23. dxe5 {[%clk 0:02:11]}  b5 {[%clk 0:01:54]} 24. Ke2 {[%clk 0:02:08]}  Ra8 {[%clk 0:01:50]} 25. Kd3 {[%clk 0:01:56]}  Ra4 {[%clk 0:01:46]} 26. Rxh8 {[%clk 0:01:50]}  Kxh8 {[%clk 0:01:46]} 27. Kc2 {[%clk 0:01:38]}  Kg7 {[%clk 0:01:43]} 28. Re1 {[%clk 0:01:25]}  Ra8 {[%clk 0:01:31]} 29. e4 {[%clk 0:01:22]}  Rh8 {[%clk 0:01:29]} 30. exd5 {[%clk 0:01:20]}  Rh2+ {[%clk 0:01:21]} 31. Kc1 {[%clk 0:01:01]}  exd5 {[%clk 0:01:20]} 32. Rd1 {[%clk 0:01:01]}  Rf2 {[%clk 0:01:19]} 33. Rxd5 {[%clk 0:01:01]}  Rxf4 {[%clk 0:01:18]} 34. Rxc5 {[%clk 0:01:00]}  Rf5 {[%clk 0:01:17]} 35. Rxb5 {[%clk 0:01:00]}  Rxg5 {[%clk 0:01:17]} 36. a4 {[%clk 0:00:56]}  Rf5 {[%clk 0:01:12]} 37. Kd2 {[%clk 0:00:37]}  g5 {[%clk 0:01:11]} 38. Ke3 {[%clk 0:00:36]}  Rf1 {[%clk 0:01:02]} 39. Rxb7 {[%clk 0:00:33]}  g4 {[%clk 0:01:02]} 40. e6 {[%clk 0:00:30]}  g3 {[%clk 0:00:59]} 41. Rxf7+ {[%clk 0:00:24]}  Rxf7 {[%clk 0:00:58]} 42. exf7 {[%clk 0:00:23]} 1-0


[Site "https://www.chess.com"]